fUSD/lending_fUSD_20240225
["ID","MTS","AMOUNT","RATE_DAILY","PERIOD"]
[315153407,1708891850004,-1235.04,0.000239,2]
[315153408,1708891850024,-321.83999,0.00023879,2]
[315153409,1708891850090,-178.16001,0.00023879,2]
[315153410,1708891850102,-500.0,0.00023879,2]
[315153411,1708891850114,-500.0,0.00023879,2]
[315153412,1708891850127,-8873.47225516,0.000239,2]
[315153413,1708891850138,-146685.53509689,0.00024,30]
[315153414,1708891850152,-377.63072068,0.00024,30]
[315153415,1708891850166,-306.58914448,0.00024,30]
[315153416,1708891850214,-1600.65,0.00024,30]
[315153417,1708891850226,-690.03922118,0.00024,30]
[315153418,1708891850379,-500.0,0.00023879,2]
[315153419,1708891850391,-500.0,0.00023993,2]
[315153420,1708891850404,-500.0,0.00023998,2]
[315153421,1708891850416,-500.0,0.00023998,2]
[315153422,1708891850428,-194300.99803582,0.00024,30]
[315153423,1708891850455,-21898.29798857,0.00024,30]
[315153424,1708891850469,-542573.18483445,0.00024,30]
[315153425,1708891850489,-404.34576589,0.00024,30]
[315153426,1708891850519,-500.0,0.00023999,2]
[315153427,1708891850531,-21764.56000011,0.00024,30]
[315153428,1708891850839,-500.0,0.00023999,2]
[315153429,1708891850851,-500.0,0.00023999,2]
[315153430,1708891850863,-500.0,0.00023999,2]
[315153431,1708891850874,-500.0,0.00023999,2]
[315153432,1708891850885,-500.0,0.00023999,2]
[315153433,1708891850896,-500.0,0.00023999,2]
[315153434,1708891850906,-500.0,0.00023999,2]
[315153435,1708891850917,-500.0,0.00023999,2]
[315153436,1708891850929,-206.8,0.00023999,2]
[315153437,1708891850941,-779.42351991,0.00023999,2]
[315153438,1708891850955,-15059.91205319,0.00024,30]
[315153439,1708891852043,-182755.4713861,0.00024,30]
[315153440,1708891883109,151.0,0.00026864,120]
[315153441,1708891923256,813.47,0.00021111,2]
[315153443,1708892108410,321.9277407,0.00022785,2]
[315153444,1708892108436,321.9277407,0.00022785,2]
[315153445,1708892108460,321.9277407,0.00022785,2]
[315153446,1708892108484,321.9277407,0.00022785,2]
[315153447,1708892108514,1417.2890372,0.00022785,2]
[315153448,1708892111399,500.0,0.00022753,2]
[315153449,1708892116563,23900.0,0.00022785,2]
[315153450,1708892122759,750.0,0.00022785,2]
[315153451,1708892132703,565.87,0.00022785,2]
[315153452,1708892133913,206.0,0.00021952,2]
[315153453,1708892162922,150.0,0.00022462,2]
[315153454,1708892175374,200.0,0.00022473,2]
[315153455,1708892179429,167.01,0.00022461,2]
[315153456,1708892182180,567.23,0.00022461,2]
[315153457,1708892191127,10428.37,0.00022433,2]
[315153458,1708892227461,1908.4,0.00022422,2]
[315153459,1708892228147,839.79,0.00022422,2]
[315153460,1708892254340,209.01,0.00022422,2]
[315153461,1708892265989,2271.97,0.00022422,2]
[315153462,1708892284999,152.0,0.00021297,3]
[315153463,1708892286647,500.0,0.00022454,2]
[315153464,1708892312215,3327.456,0.00022709,2]
[315153465,1708892338391,250.0,0.00022384,2]
[315153466,1708892344356,151.0,0.00026898,120]
[315153467,1708892356208,179.77,0.00022398,2]
[315153468,1708892357968,186831.7627035,0.000219,2]
[315153469,1708892357995,97558.61028787,0.000219,2]
[315153470,1708892366325,-150.0,0.00022385,2]
[315153471,1708892366738,-150.0,0.00022385,2]
[315153472,1708892367352,-150.0,0.00022385,2]
[315153473,1708892367928,-150.0,0.00022385,2]
[315153474,1708892368524,-150.0,0.00022385,2]
[315153475,1708892369129,-150.0,0.00022385,2]
[315153476,1708892369783,-150.0,0.00022385,2]
[315153477,1708892373822,284390.37299137,0.000219,2]
[315153478,1708892374423,-150.0,0.00022385,2]
[315153479,1708892374817,-150.0,0.00022385,2]
[315153480,1708892375234,-150.0,0.00022385,2]
[315153481,1708892379773,-150.0,0.00022385,2]
[315153482,1708892380321,-150.0,0.00022385,2]
[315153483,1708892387085,-150.0,0.00022385,2]
[315153484,1708892388076,-150.0,0.00022337,2]
[315153485,1708892388591,-150.0,0.00022337,2]
[315153486,1708892389033,-150.0,0.00022337,2]
[315153487,1708892389707,-150.0,0.00022337,2]
[315153488,1708892391950,148167.3843285,0.000219,2]
[315153489,1708892395031,-150.0,0.00022337,2]
[315153490,1708892395681,-150.0,0.00022337,2]
[315153491,1708892400968,-150.0,0.00022337,2]
[315153492,1708892407075,150.0,0.00020428,2]
[315153493,1708892407098,150.0,0.00020428,2]
[315153494,1708892407119,150.0,0.00020428,2]
[315153495,1708892407141,150.0,0.00020428,2]
[315153496,1708892407164,150.0,0.00020428,2]
[315153497,1708892407185,45.3,0.00020428,2]
[315153498,1708892411847,148167.3843285,0.000219,2]
[315153499,1708892429824,148167.3843285,0.000219,2]
[315153500,1708892449828,148167.3843285,0.000219,2]
[315153501,1708892471835,148167.3843285,0.000219,2]
[315153502,1708892479198,150.0,0.000219,2]
[315153503,1708892479218,150.0,0.000219,2]
[315153504,1708892479239,169.76605451,0.000219,2]
[315153505,1708892493196,469.76605451,0.000219,2]
[315153506,1708892497833,148167.3843285,0.000219,2]
[315153507,1708892513198,469.76605451,0.000219,2]
[315153508,1708892521347,148167.3843285,0.000219,2]
[315153509,1708892535135,540.70183647,0.000219,2]
[315153510,1708892535420,300.0,0.0002,2]
[315153511,1708892539396,148167.3843285,0.000219,2]
[315153512,1708892555355,148167.3843285,0.000219,2]
[315153513,1708892573631,300.0,0.00023,24]
[315153514,1708892574025,151.0,0.00026721,120]
[315153515,1708892575406,148167.3843285,0.000219,2]
[315153517,1708892593361,111309.05558093,0.000219,2]
[315153518,1708892691953,419.89,0.00021789,2]
[315153519,1708892743034,169.59,0.00021789,2]
[315153520,1708892748599,1893.31,0.00021789,2]
[315153521,1708892874019,150.0,0.00021337,2]
[315153522,1708892875358,150.0,0.00021885,2]
[315153523,1708892886006,755.53,0.00019624,2]
[315153524,1708892886343,755.53,0.00021888,2]
[315153525,1708892908742,151.0,0.00026801,120]
[315153528,1708892941611,150.0,0.00021359,2]
[315153530,1708892967249,-150.0,0.00021907,2]
[315153531,1708892967274,-547.3,0.0002201,2]
[315153532,1708892967297,-179.77,0.00022037,2]
[315153533,1708892967326,-2380.3754,0.00022064,2]
[315153534,1708892988870,299.14,0.00021568,3]
[315153535,1708893000581,923.17,0.00021578,2]
[315153536,1708893007997,6102.95,0.00021587,2]
[315153537,1708893013405,175.73,0.00021587,2]
[315153538,1708893021778,5503.25,0.00021595,2]
[315153539,1708893032402,-150.02,0.00021918,2]
[315153540,1708893032412,-2694.33153165,0.00021918,2]
[315153541,1708893032423,-9205.66846835,0.00021918,2]
[315153542,1708893032433,-2228.0146,0.00022064,2]
[315153543,1708893032442,-150.02,0.00022074,2]
[315153544,1708893032452,-158.05909155,0.00022076,2]
[315153545,1708893032462,-468.55,0.00022177,2]
[315153546,1708893032471,-206.0,0.0002219,2]
[315153547,1708893032481,-155.07,0.00022204,2]
[315153548,1708893032490,-150.0,0.00022213,2]
[315153549,1708893032500,-5443.84,0.00022214,2]
[315153550,1708893032509,-499.99,0.00022215,2]
[315153551,1708893032519,-150.02,0.00022231,2]
[315153552,1708893032529,-150.0,0.00022237,2]
[315153553,1708893032539,-537.63,0.00022237,2]
[315153554,1708893032548,-6586.39,0.00022237,2]
[315153555,1708893032559,-563.13,0.00022237,2]
[315153556,1708893032569,-468.55,0.00022237,2]
[315153557,1708893032578,-468.55,0.00022298,2]
[315153558,1708893032588,-468.55,0.00022359,2]
[315153559,1708893032598,-150.02,0.00022387,2]
[315153560,1708893032607,-468.55,0.0002242,2]
[315153561,1708893032618,-150.0,0.00022421,2]
[315153562,1708893032628,-155.07,0.00022451,2]
[315153563,1708893032638,-468.55,0.00022481,2]
[315153564,1708893032648,-1000.0,0.000225,2]
[315153565,1708893032657,-468.55,0.00022541,2]
[315153566,1708893032667,-150.02,0.00022544,2]
[315153567,1708893032676,-468.55,0.00022602,2]
[315153568,1708893032685,-468.55,0.00022663,2]
[315153569,1708893032695,-158.05909155,0.00022684,2]
[315153570,1708893032705,-155.07,0.00022697,2]
[315153571,1708893032714,-150.02,0.00022701,2]
[315153572,1708893032724,-468.55,0.00022724,2]
[315153573,1708893032733,-468.55,0.00022785,2]
[315153574,1708893032743,-26087.71363932,0.00022835,2]
[315153575,1708893032752,-567.0909,0.00022839,2]
[315153576,1708893032762,-468.55,0.00022846,2]
[315153577,1708893032775,-150.02,0.00022857,2]
[315153578,1708893032785,-153.49,0.00022892,2]
[315153579,1708893032795,-468.55,0.00022906,2]
[315153580,1708893032805,-192394.0,0.00022939,2]
[315153581,1708893032815,-155.07,0.00022944,2]
[315153582,1708893032825,-468.55,0.00022967,2]
[315153583,1708893032835,-500.0,0.00022999,2]
[315153584,1708893032846,-500.0,0.00022999,2]
[315153585,1708893032856,-500.0,0.00022999,2]
[315153586,1708893032868,-500.0,0.00022999,2]
[315153587,1708893032878,-500.0,0.00022999,2]
[315153588,1708893032888,-500.0,0.00022999,2]
[315153589,1708893032897,-407.17733215,0.00022999,2]
[315153590,1708893032907,-500.0,0.00022999,2]
[315153591,1708893032916,-500.0,0.00022999,2]
[315153592,1708893032925,-1118.3,0.00023,4]
[315153593,1708893032935,-355.38,0.00023,2]
[315153594,1708893032944,-150.02,0.00023014,2]
[315153595,1708893032954,-150.99,0.00023018,2]
[315153596,1708893032963,-468.55,0.00023028,2]
[315153597,1708893032973,-152.0,0.0002303,4]
[315153598,1708893032982,-468.55,0.00023089,2]
[315153599,1708893032991,-468.55,0.0002315,2]
[315153600,1708893033001,-150.02,0.0002317,2]
[315153601,1708893033011,-150.0,0.00023178,2]
[315153602,1708893033020,-150.0,0.00023178,2]
[315153603,1708893033030,-150.0,0.00023178,2]
[315153604,1708893033042,-150.0,0.00023178,2]
[315153605,1708893033052,-150.0,0.00023178,2]
[315153606,1708893033062,-150.0,0.00023178,2]
[315153607,1708893033071,-150.0,0.00023178,2]
[315153608,1708893033081,-150.0,0.00023178,2]
[315153609,1708893033091,-150.0,0.00023178,2]
[315153610,1708893033100,-4127.6087,0.00023181,2]
[315153611,1708893033111,-155.07,0.00023191,2]
[315153612,1708893033121,-468.55,0.0002321,2]
[315153613,1708893033130,-468.55,0.00023271,2]
[315153614,1708893033139,-155.07,0.00023281,2]
[315153615,1708893033149,-500.0,0.00023281,2]
[315153616,1708893033158,-804.01,0.00023281,2]
[315153617,1708893033168,-1816.79,0.00023281,2]
[315153618,1708893033178,-1726.82,0.00023281,2]
[315153619,1708893033188,-500.0,0.00023281,2]
[315153620,1708893033197,-512.66,0.00023281,2]
[315153621,1708893033206,-500.0,0.00023281,2]
[315153622,1708893033216,-500.0,0.00023281,2]
[315153623,1708893033225,-3347.99,0.00023281,2]
[315153624,1708893033235,-500.0,0.00023281,2]
[315153625,1708893033244,-500.0,0.00023281,2]
[315153626,1708893033254,-500.0,0.00023281,2]
[315153627,1708893033263,-1280.3,0.00023281,2]
[315153628,1708893033273,-2119.81,0.00023281,2]
[315153629,1708893033285,-500.0,0.00023281,2]
[315153630,1708893033295,-500.0,0.00023281,2]
[315153631,1708893033304,-500.0,0.00023281,2]
[315153632,1708893033317,-981.43,0.00023281,2]
[315153633,1708893033327,-500.0,0.00023281,2]
[315153634,1708893033336,-500.0,0.00023281,2]
[315153635,1708893033346,-1963.53,0.00023281,2]
[315153636,1708893033356,-1932.11,0.00023281,2]
[315153637,1708893033368,-583.48212223,0.00023281,2]
[315153638,1708893033378,-500.0,0.00023281,2]
[315153639,1708893033390,-843.7,0.00023281,2]
[315153640,1708893033399,-1586.23112793,0.00023281,2]
[315153641,1708893033418,-499.12990968,0.00023281,2]
[315153642,1708893033482,-2722.54896239,0.00023281,2]
[315153643,1708893033491,-500.0,0.00023281,2]
[315153644,1708893033501,-158.05909155,0.00023291,2]
[315153645,1708893033511,-150.02,0.00023327,2]
[315153646,1708893033521,-468.55,0.00023332,2]
[315153647,1708893033530,-3683.3655,0.00023418,2]
[315153648,1708893033539,-300.0,0.00023423,2]
[315153649,1708893033549,-1893.31,0.00023433,2]
[315153650,1708893033558,-155.07,0.00023437,2]
[315153651,1708893033568,-1323.8409748,0.00023458,2]
[315153652,1708893033578,-150.02,0.00023483,2]
[315153653,1708893033587,-3180.0,0.000235,2]
[315153654,1708893033596,-424.8,0.00023517,2]
[315153655,1708893033607,-500.0,0.00023517,2]
[315153656,1708893033619,-500.0,0.00023517,2]
[315153657,1708893033628,-696.07,0.00023517,2]
[315153658,1708893033640,-500.0,0.00023517,2]
[315153659,1708893033650,-684.71,0.00023517,2]
[315153660,1708893033659,-500.0,0.00023517,2]
[315153661,1708893033669,-500.0,0.00023517,2]
[315153662,1708893033680,-500.0,0.00023517,2]
[315153663,1708893033689,-1088.9,0.00023517,2]
[315153664,1708893033699,-781.86,0.00023517,2]
[315153665,1708893033709,-500.0,0.00023517,2]
[315153666,1708893033718,-500.0,0.00023517,2]
[315153667,1708893033727,-560.92,0.00023517,2]
[315153668,1708893033737,-500.0,0.00023517,2]
[315153669,1708893033746,-500.0,0.00023517,2]
[315153670,1708893033756,-1187.42,0.00023517,2]
[315153671,1708893033765,-500.0,0.00023517,2]
[315153672,1708893033775,-500.0,0.00023517,2]
[315153673,1708893033785,-536.5556595,0.00023517,2]
[315153674,1708893033795,-343.56935882,0.00023517,2]
[315153675,1708893033804,-500.0,0.00023517,2]
[315153676,1708893033813,-500.0,0.00023517,2]
[315153677,1708893033823,-500.0,0.00023517,2]
[315153678,1708893033833,-500.0,0.00023517,2]
[315153679,1708893033843,-500.0,0.00023517,2]
[315153680,1708893033853,-500.0,0.00023517,2]
[315153681,1708893033863,-547.74,0.00023517,2]
[315153682,1708893033872,-568.92,0.00023517,2]
[315153683,1708893033882,-500.0,0.00023517,2]
[315153684,1708893033892,-500.0,0.00023517,2]
[315153685,1708893033901,-500.0,0.00023517,2]
[315153686,1708893033911,-500.0,0.00023517,2]
[315153687,1708893033920,-534.65,0.00023517,2]
[315153688,1708893033930,-1097.5,0.00023517,2]
[315153689,1708893033939,-500.0,0.00023517,2]
[315153690,1708893033949,-500.0,0.00023517,2]
[315153691,1708893033958,-500.0,0.00023517,2]
[315153692,1708893033968,-552.78283017,0.00023517,2]
[315153693,1708893033977,-2337.15,0.00023517,2]
[315153694,1708893033986,-500.0,0.00023517,2]
[315153695,1708893033995,-556.09,0.00023517,2]
[315153696,1708893034005,-500.0,0.00023517,2]
[315153697,1708893034014,-500.0,0.00023517,2]
[315153698,1708893034024,-8463.15,0.00023517,2]
[315153699,1708893034033,-500.0,0.00023517,2]
[315153700,1708893034042,-500.0,0.00023517,2]
[315153701,1708893034052,-500.0,0.00023517,2]
[315153702,1708893034061,-500.0,0.00023517,2]
[315153703,1708893034071,-1656.58,0.00023517,2]
[315153704,1708893034081,-500.0,0.00023517,2]
[315153705,1708893034090,-500.0,0.00023517,2]
[315153706,1708893034100,-155.19974343,0.00023517,2]
[315153707,1708893034109,-500.0,0.00023517,2]
[315153708,1708893034120,-500.0,0.00023517,2]
[315153709,1708893034129,-500.0,0.00023517,2]
[315153710,1708893034138,-500.0,0.00023517,2]
[315153711,1708893034148,-861.72,0.00023517,2]
[315153712,1708893034158,-172.2,0.00023595,2]
[315153713,1708893034168,-150.02,0.0002364,2]
[315153714,1708893034177,-677.97,0.00023659,2]
[315153715,1708893034186,-500.0,0.00023659,2]
[315153716,1708893034196,-501.05,0.00023659,2]
[315153717,1708893034205,-500.0,0.00023659,2]
[315153718,1708893034215,-500.0,0.00023659,2]
[315153719,1708893034224,-500.0,0.00023659,2]
[315153720,1708893034233,-500.0,0.00023659,2]
[315153721,1708893034242,-572.18247509,0.00023659,2]
[315153722,1708893034252,-421.5719126,0.00023659,2]
[315153723,1708893034262,-500.0,0.00023659,2]
[315153724,1708893034271,-500.0,0.00023659,2]
[315153725,1708893034284,-500.0,0.00023659,2]
[315153726,1708893034294,-500.0,0.00023659,2]
[315153727,1708893034304,-500.0,0.00023659,2]
[315153728,1708893034313,-524.39101216,0.00023659,2]
[315153729,1708893034322,-500.0,0.00023659,2]
[315153730,1708893034332,-500.0,0.00023659,2]
[315153731,1708893034342,-500.0,0.00023659,2]
[315153732,1708893034351,-559.922,0.0002366,2]
[315153733,1708893034361,-23816.5809,0.0002366,2]
[315153734,1708893034370,-6461.1434,0.0002366,2]
[315153735,1708893034379,-155.07,0.00023684,2]
[315153736,1708893034389,-457.32,0.0002369,2]
[315153737,1708893034398,-180.78990483,0.00023698,2]
[315153738,1708893034407,-1434.7,0.00023718,2]
[315153739,1708893034416,-42702.0,0.00023748,2]
[315153740,1708893034425,-2296.0,0.00023748,2]
[315153741,1708893034434,-4110.0,0.00023748,2]
[315153742,1708893034443,-19905.0,0.00023748,2]
[315153743,1708893034454,-281.99883822,0.00023781,7]
[315153744,1708893034463,-1323.8409748,0.00023789,2]
[315153745,1708893034472,-215.11931397,0.00023794,2]
[315153746,1708893034482,-150.02,0.00023796,2]
[315153747,1708893034491,-9950.67294561,0.00023798,2]
[315153748,1708893034501,-9950.67294561,0.00023798,2]
[315153749,1708893034510,-9950.67294561,0.00023798,2]
[315153750,1708893034519,-9950.67294561,0.00023798,2]
[315153751,1708893034529,-359.74957534,0.00023798,2]
[315153752,1708893034542,-9590.92337027,0.00023798,2]
[315153753,1708893034551,-9950.67294561,0.00023798,2]
[315153754,1708893034560,-9950.67294561,0.00023798,2]
[315153755,1708893034569,-3473.72310805,0.00023798,2]
[315153756,1708893034581,-6476.94983756,0.00023798,2]
[315153757,1708893034590,-693.85279926,0.00023798,2]
[315153758,1708893034599,-621.03846319,0.00023798,2]
[315153759,1708893034611,-72.81433604,0.00023798,2]
[315153760,1708893034620,-693.85279923,0.00023798,2]
[315153761,1708893034630,-693.85279923,0.00023798,2]
[315153762,1708893034639,-693.85279923,0.00023798,2]
[315153763,1708893034649,-693.85279923,0.00023798,2]
[315153764,1708893034658,-693.85279923,0.00023798,2]
[315153765,1708893034668,-693.85279923,0.00023798,2]
[315153766,1708893034677,-693.85279923,0.00023798,2]
[315153767,1708893034687,-500.0,0.00023799,2]
[315153768,1708893034697,-500.0,0.00023799,2]
[315153769,1708893034706,-500.0,0.00023799,2]
[315153770,1708893034715,-500.0,0.00023799,2]
[315153771,1708893034724,-500.0,0.00023799,2]
[315153772,1708893034734,-500.0,0.00023799,2]
[315153773,1708893034743,-500.0,0.00023799,2]
[315153774,1708893034752,-17540.30309535,0.000238,2]
[315153780,1708893038391,-500.0,0.00023517,2]
[315153781,1708893038401,-500.0,0.00023517,2]
[315153782,1708893038411,-1040.0,0.00023749,2]
[315153783,1708893038420,-169.7628148,0.0002379,2]
[315153784,1708893038430,-24173.61148682,0.000238,2]
[315153785,1708893038442,-17521.36105184,0.000238,2]
[315153786,1708893038454,-1328.70239299,0.000238,2]
[315153787,1708893038463,-200.0,0.00023808,2]
[315153788,1708893038472,-200.0,0.00023808,2]
[315153789,1708893038481,-500.0,0.00023808,2]
[315153790,1708893038491,-9950.67294561,0.00023821,2]
[315153791,1708893038500,-500.0,0.00023836,2]
[315153792,1708893038509,-500.0,0.00023846,2]
[315153793,1708893038518,-804.01,0.00023846,2]
[315153794,1708893038528,-1816.79,0.00023846,2]
[315153795,1708893038538,-1726.82,0.00023846,2]
[315153796,1708893038547,-500.0,0.00023846,2]
[315153797,1708893038556,-512.66,0.00023846,2]
[315153798,1708893038565,-500.0,0.00023846,2]
[315153799,1708893038574,-500.0,0.00023846,2]
[315153800,1708893038583,-3347.99,0.00023846,2]
[315153801,1708893038592,-500.0,0.00023846,2]
[315153802,1708893038602,-500.0,0.00023846,2]
[315153803,1708893038612,-500.0,0.00023846,2]
[315153804,1708893038622,-1280.3,0.00023846,2]
[315153805,1708893038631,-248.42,0.00023846,2]
[315153806,1708893038640,-981.43,0.00023846,2]
[315153807,1708893038649,-500.0,0.00023846,2]
[315153808,1708893038659,-843.7,0.00023846,2]
[315153809,1708893038669,-4807.91,0.00023846,2]
[315153810,1708893038678,-500.0,0.00023846,2]
[315153812,1708893038687,-2119.81,0.00023877,2]
[315153814,1708893038696,-500.0,0.00023877,2]
[315153816,1708893038705,-500.0,0.00023877,2]
[315153817,1708893038714,-1963.53,0.00023877,2]
[315153818,1708893038723,-1932.11,0.00023877,2]
[315153819,1708893038732,-560.98561985,0.00023878,2]
[315153820,1708893038741,-500.0,0.00023878,2]
[315153821,1708893038750,-500.0,0.00023878,2]
[315153822,1708893038759,-500.0,0.00023878,2]
[315153823,1708893038768,-500.0,0.00023878,2]
[315153824,1708893038776,-213.91313607,0.00023878,2]
[315153825,1708893038823,-286.08686393,0.00023878,2]
[315153826,1708893038832,-18.44971247,0.00023878,2]
[315153828,1708893038843,-357.95144204,0.00023878,2]
[315153849,1708893040937,-500.0,0.00022999,2]
[315153850,1708893040946,-500.0,0.00023517,2]
[315153851,1708893040955,-182.02884549,0.00023878,2]
[315153852,1708893040964,-500.0,0.00023878,2]
[315153853,1708893040973,-500.0,0.00023878,2]
[315153854,1708893040982,-594.17789011,0.00023878,2]
[315153855,1708893040991,-500.0,0.00023878,2]
[315153856,1708893041000,-500.0,0.00023878,2]
[315153857,1708893041009,-500.0,0.00023878,2]
[315153858,1708893041019,-500.0,0.00023878,2]
[315153859,1708893041028,-500.0,0.00023878,2]
[315153860,1708893041037,-500.0,0.00023878,2]
[315153861,1708893041046,-500.0,0.00023878,2]
[315153862,1708893041055,-500.0,0.00023878,2]
[315153863,1708893041064,-500.0,0.00023878,2]
[315153864,1708893041073,-500.0,0.00023878,2]
[315153865,1708893041082,-500.0,0.00023878,2]
[315153866,1708893041090,-500.0,0.00023878,2]
[315153867,1708893041099,-500.0,0.00023878,2]
[315153868,1708893041108,-500.0,0.00023878,2]
[315153869,1708893041118,-500.0,0.00023878,2]
[315153870,1708893041127,-500.0,0.00023878,2]
[315153871,1708893041136,-500.0,0.00023878,2]
[315153872,1708893041145,-500.0,0.00023878,2]
[315153873,1708893041154,-500.0,0.00023878,2]
[315153874,1708893041163,-500.0,0.00023878,2]
[315153875,1708893041173,-500.0,0.00023878,2]
[315153876,1708893041182,-696.07,0.00023878,2]
[315153877,1708893041192,-500.0,0.00023878,2]
[315153878,1708893041201,-684.71,0.00023878,2]
[315153879,1708893041211,-500.0,0.00023878,2]
[315153880,1708893041220,-500.0,0.00023878,2]
[315153881,1708893041229,-500.0,0.00023878,2]
[315153882,1708893041239,-1088.9,0.00023878,2]
[315153883,1708893041248,-781.86,0.00023878,2]
[315153884,1708893041258,-500.0,0.00023878,2]
[315153885,1708893041267,-500.0,0.00023878,2]
[315153886,1708893041277,-500.0,0.00023878,2]
[315153887,1708893041287,-560.92,0.00023878,2]
[315153888,1708893041297,-500.0,0.00023878,2]
[315153889,1708893041306,-500.0,0.00023878,2]
[315153890,1708893041315,-1187.42,0.00023878,2]
[315153891,1708893041325,-500.0,0.00023878,2]
[315153892,1708893041334,-500.0,0.00023878,2]
[315153893,1708893041343,-500.0,0.00023878,2]
[315153894,1708893041352,-500.0,0.00023878,2]
[315153895,1708893041363,-500.0,0.00023878,2]
[315153896,1708893041376,-547.74,0.00023878,2]
[315153897,1708893041385,-500.0,0.00023878,2]
[315153898,1708893041394,-500.0,0.00023878,2]
[315153899,1708893041403,-500.0,0.00023878,2]
[315153900,1708893041412,-500.0,0.00023878,2]
[315153901,1708893041422,-500.0,0.00023878,2]
[315153902,1708893041431,-500.0,0.00023878,2]
[315153903,1708893041440,-500.0,0.00023878,2]
[315153904,1708893041449,-500.0,0.00023878,2]
[315153905,1708893041459,-500.0,0.00023878,2]
[315153906,1708893041468,-534.65,0.00023878,2]
[315153907,1708893041478,-1097.5,0.00023878,2]
[315153908,1708893041487,-500.0,0.00023878,2]
[315153909,1708893041497,-500.0,0.00023878,2]
[315153910,1708893041506,-2337.15,0.00023878,2]
[315153911,1708893041515,-500.0,0.00023878,2]
[315153912,1708893041524,-556.09,0.00023878,2]
[315153913,1708893041533,-500.0,0.00023878,2]
[315153914,1708893041543,-500.0,0.00023878,2]
[315153915,1708893041551,-500.0,0.00023878,2]
[315153916,1708893041560,-500.0,0.00023878,2]
[315153917,1708893041570,-8463.15,0.00023878,2]
[315153918,1708893041578,-500.0,0.00023878,2]
[315153919,1708893041588,-223.47773938,0.00023878,2]
[315153920,1708893041597,-500.0,0.00023878,2]
[315153921,1708893041606,-500.0,0.00023878,2]
[315153922,1708893041615,-622.15292502,0.00023878,2]
[315153930,1708893043760,-1034.42707498,0.00023878,2]
[315153931,1708893043770,-500.0,0.00023878,2]
[315153932,1708893043780,-500.0,0.00023878,2]
[315153933,1708893043790,-500.0,0.00023878,2]
[315153934,1708893043799,-500.0,0.00023878,2]
[315153935,1708893043808,-861.72,0.00023878,2]
[315153936,1708893043818,-500.0,0.00023878,2]
[315153937,1708893043827,-500.0,0.00023878,2]
[315153938,1708893043836,-500.0,0.00023878,2]
[315153939,1708893043846,-500.0,0.00023878,2]
[315153940,1708893043855,-500.0,0.00023879,2]
[315153941,1708893043867,-500.0,0.00023879,2]
[315153942,1708893043877,-500.0,0.00023879,2]
[315153943,1708893043887,-402.47843139,0.00023879,2]
[315153944,1708893043896,-527.08,0.00023879,2]
[315153945,1708893043906,-500.0,0.00023879,2]
[315153946,1708893043915,-500.0,0.00023879,2]
[315153947,1708893043924,-500.0,0.00023879,2]